Cogmind - Beta 16 @@@ ROGUE MODE // 2025.10.22 @ 19:17:00 // Winter2019/RPGLIKE Player: Gallgagger Result: Destroyed by 8R-AWN with 8R-AWN's Boregun Performance ------------- Evolutions (0) 0 Regions Visited (3) 600 Robots Destroyed (40) 200 Value Destroyed (1015) 1015 Prototype IDs (23) 460 Alien Tech Used (0) 0 Bonus (300) 300 TOTAL SCORE: 2575 Bonus ------- Aligned with FarCom 300 Cogmind --------- Core Integrity 0/1000 Matter 153/300 Energy 400/400 System Corruption 0% Temperature Cool (0) Movement Flying (50) Location -10/Exiles Parts ------- > --- POWER (2) -------- Ion Engine Ion Engine > --- PROPULSION (4) --- Flying Fortress v7 > --- UTILITY (2) ------ Structural Scanner Light Armor Plating > --- WEAPON (3) ------- Assault Rifle Assault Rifle Heavy Battle Rifle > --- INVENTORY (2) ---- (None) Peak State ------------ > --- POWER ------------ Ion Engine Ion Engine > --- PROPULSION ------- Flying Fortress v7 > --- UTILITY ---------- Structural Scanner Light Armor Plating > --- WEAPON ----------- Assault Rifle Assault Rifle Heavy Battle Rifle > --- INVENTORY -------- Fission Core Light Fission Core [Rating: 43] Favorites ----------- Power Ion Engine Engine Ion Engine Propulsion Armored Wheel Wheel Armored Wheel Flight Unit Flying Fortress v7 Utility Structural Scanner Device Structural Scanner Protection Light Armor Plating Weapon Assault Rifle Energy Gun Medium Laser Ballistic Gun Assault Rifle Build | -11 -10 -10 -10 ------- Run | Yrd Mat Min Exi Slots Evolved 7 | 4 2 . 1 Power 1 | 1 . . . Propulsion 3 | 1 1 . 1 Utility 1 | 1 . . . Weapon 2 | 1 1 . . Parts Attached 19 | 6 7 5 1 Power 2 | 2 . . . Engine 2 | 2 . . . Core . | . . . . Reactor . | . . . . Propulsion 6 | 2 3 . 1 Treads . | . . . . Leg . | . . . . Wheel 5 | 2 3 . . Hover . | . . . . Flight 1 | . . . 1 Utility 3 | . . 3 . Device 1 | . . 1 . Storage . | . . . . Processor . | . . . . Hackware . | . . . . Protection 2 | . . 2 . Artifact . | . . . . Weapon 8 | 2 4 2 . Energy Gun 2 | 1 1 . . Energy Cannon . | . . . . Ballistic Gun 6 | 1 3 2 . Ballistic Cannon . | . . . . Launcher . | . . . . Special Weapon . | . . . . Impact Weapon . | . . . . Slashing Weapon . | . . . . Piercing Weapon . | . . . . Special Melee Weapon . | . . . . Unidentified Prototypes . | . . . . Parts Lost . | . . . . Power . | . . . . Propulsion . | . . . . Utility . | . . . . Weapon . | . . . . Highest Loss Streak . | . . . . To Critical Strikes . | . . . . Average Backups . | . . . . Power . | . . . . Propulsion . | . . . . Utility . | . . . . Weapon . | . . . . Tool/Special . | . . . . Unused Backups 5 | . . . 5 Power 2 | . . . 2 Propulsion . | . . . . Utility 3 | . . . 3 Weapon . | . . . . Tool/Special . | . . . . Average Slot Usage (%) 81 | . 75 97 77 Engine 21 | . 23 20 18 Wheel 23 | . 26 30 6 Flight 1 | . . . 6 Device 4 | . . 8 9 Protection 4 | . . 8 9 Energy Gun 10 | . 20 . . Ballistic Gun 16 | . 4 30 27 Peak Build Rating 43 | 6 11 16 43 Average Rating 15 | 3 8 15 36 On Entrance 8 | . 6 11 16 Avg Prop Armor Cover (%) . | . . . . Naked Turns . | . . . . Heaviest Build 22 | 13 16 22 22 Greatest Support 50 | 20 36 36 50 Greatest Overweight (x) 1 | 1 . . . Average Overweight (x) . | . . . . Largest Inventory Capacity 2 | 1 1 1 2 Average Capacity 1 | 1 1 1 1 Most Carried 2 | . 1 1 2 Average Carried . | . . . . Final Capacity 2 | 1 1 1 2 Final Carried 1 | . . 1 . Class Distribution -------------------- 53% | Gunner 43% | Mutant 3% | Derelict-Gunner Dominant Class ---------------- Mutant | -10/Materials Gunner | -10/Mines Gunner | -10/Exiles Resources | -11 -10 -10 -10 ----------- Run | Yrd Mat Min Exi Matter Collected 659 | 256 86 151 166 Remotely . | . . . . Salvage Created 1381 | . 1184 159 38 Parts 75 | . 58 17 . Haulers Intercepted 1 | . 1 . . Recyclers Shooed . | . . . . Parts Field Recycled . | . . . . Retrieved Matter . | . . . . Parts Self-Destructed . | . . . . Prevented . | . . . . Parts Restored . | . . . . Kills | -11 -10 -10 -10 ------- Run | Yrd Mat Min Exi Combat Hostiles Destroyed 36 | . 28 6 2 Guns 33 | . 25 6 2 Classes Destroyed 8 | . 6 1 1 Worker 1 | . . 1 . Builder 1 | . 1 . . Hauler 1 | . 1 . . Recycler 2 | . 1 1 . Watcher 1 | . 1 . . Swarmer 9 | . 3 6 . Grunt 25 | . 25 . . Assembled 2 | . . . 2 Best Kill Streak 9 | . 9 3 2 Combat Bots Only 9 | . 9 3 2 Max Kills in Single Turn 2 | . 2 1 1 Gunslinging . | . . . . Exploded . | . . . . Melee . | . . . . Uniques/NPCs Destroyed . | . . . . Combat | -11 -10 -10 -10 -------- Run | Yrd Mat Min Exi Hostile Shots Fired 200 | . 112 20 68 Missed 46 | . 23 8 15 Hits 154 | . 89 12 53 Melee 1 | . . . 1 Projectile 153 | . 89 12 52 Critical Strikes 26 | . . . 26 Damage Taken 2138 | . 978 90 1070 Core 1681 | . 780 72 829 Absorbed by Shields . | . . . . Redirected to Core 1421 | . 629 48 744 Core Remaining (%) 100 | 100 . . . Volleys Fired 160 | . 112 13 35 Largest 3 | . 3 3 3 Hottest 120 | . 120 73 73 Shots Fired 368 | . 228 39 101 Gun 368 | . 228 39 101 Cannon . | . . . . Launcher . | . . . . Special . | . . . . Kinetic 144 | . 4 39 101 Thermal 224 | . 224 . . Explosive . | . . . . Electromagnetic . | . . . . Robot Hit Streak 46 | . 46 5 28 Robot Miss Streak 5 | . 5 5 4 Penetration Max . | . . . . Secondary Targets 8 | . 5 2 1 Max Gunslinging Chain 1 | . 1 1 1 Shots Hit Robots 262 | . 169 16 77 Core Hits 83 | . 60 9 14 Critical Kills . | . . . . Critical Parts Destroyed . | . . . . Critical Strikes 19 | . 18 . 1 Burn 18 | . 18 . . Destroy 1 | . . . 1 Melee Attacks . | . . . . Impact . | . . . . Slashing . | . . . . Piercing . | . . . . Sneak Attacks . | . . . . Combat Hostiles . | . . . . Follow-up Attacks . | . . . . Damage Inflicted 3618 | . 2173 207 1238 Guns 3618 | . 2173 207 1238 Cannons . | . . . . Explosions . | . . . . Melee . | . . . . Ramming . | . . . . Kinetic 1495 | . 50 207 1238 Thermal 2123 | . 2123 . . Explosive . | . . . . Electromagnetic . | . . . . Impact . | . . . . Slashing . | . . . . Piercing . | . . . . Highest Corruption . | . . . . Average Corruption . | . . . . Corruption Purged . | . . . . Corruption Blocked . | . . . . Overload Shots . | . . . . Overflow Damage . | . . . . Projectiles . | . . . . Explosions . | . . . . Melee . | . . . . Knockbacks . | . . . . Impact . | . . . . Kinetic . | . . . . Secondary . | . . . . Self-Inflicted Damage . | . . . . Shots . | . . . . Rammed . | . . . . Targets Rammed . | . . . . Kicked . | . . . . Crushed . | . . . . Highest Temperature . | . . . . Average Temperature . | . . . . Received Heat Transfer 486 | . 468 . 18 Siege Activations . | . . . . Martial Activations . | . . . . Shielding Activations . | . . . . Robots Disrupted . | . . . . Combat Hostiles . | . . . . Robots Corrupted . | . . . . Combat Hostiles . | . . . . Parts Fried . | . . . . Impact Corruptions . | . . . . Robots Melted 3 | . 3 . . Combat Hostiles 3 | . 3 . . Parts Melted 23 | . 23 . . Heat Transferred 7622 | . 7622 . . Parts Sabotaged . | . . . . Parts Stolen . | . . . . Parts Stripped . | . . . . Power Chain Reactions . | . . . . Alert | -11 -10 -10 -10 ------- Run | Yrd Mat Min Exi Maximum Alert Level 1 | . 1 1 . Low Security (%) 67 | 100 54 88 . Level 1 32 | . 45 11 . Level 2 . | . . . . Level 3 . | . . . . Level 4 . | . . . . Level 5 . | . . . . High Security . | . . . . Max Security . | . . . . Peak Influence 373 | . 373 230 . Initial 120 | . . 120 . Average 154 | . 186 103 . Influence Increases 987 | . 807 180 . Destroy 0b10 Robot/C 680 | . 560 120 . Destroy 0b10 Robot/NC 30 | . 20 10 . Destroy Leader 154 | . 134 20 . Select Force Hacks 60 | . 60 . . Destroy Structure 3 | . 3 . . Lose Combat Pursuer 60 | . 30 30 . Influence Decreases 987 | . 498 489 . Entered New Map 189 | . . 189 . Time Decay 798 | . 498 300 . Squads Dispatched 9 | . 9 . . Investigation 8 | . 8 . . Extermination . | . . . . Reinforcement 1 | . 1 . . Assault . | . . . . Garrison . | . . . . Intercept . | . . . . Searches Triggered . | . . . . Construction Impeded . | . . . . Haulers Reinforced . | . . . . Active Scanning Responses . | . . . . Cargo Convoy Interrupts . | . . . . Stealth | -11 -10 -10 -10 --------- Run | Yrd Mat Min Exi Distress Signals 1 | . 1 . . Communications Jammed . | . . . . Distress Signals . | . . . . Times Spotted 59 | . 45 7 7 Peak Tracking Total 9 | . 8 3 9 Tactical Retreats 3 | . 2 1 . Traps | -11 -10 -10 -10 ------- Run | Yrd Mat Min Exi Traps Triggered 3 | . 3 . . Indirectly . | . . . . Trap Hack Attempts . | . . . . Triggered . | . . . . Disarmed . | . . . . Reprogrammed . | . . . . Reused . | . . . . Traps Extracted . | . . . . Installed . | . . . . Triggered . | . . . . Machines | -11 -10 -10 -10 ---------- Run | Yrd Mat Min Exi Machines Disabled 4 | . . . 4 Max in Single Turn 1 | . . . 1 Machines Repaired . | . . . . Machines Dismantled . | . . . . Machines Sabotaged . | . . . . Overloaded Fab Kills . | . . . . Hacking | -11 -10 -10 -10 --------- Run | Yrd Mat Min Exi Machines Accessed 7 | . 6 . 1 Terminals 3 | . 3 . . Fabricators . | . . . . Repair Stations 1 | . 1 . . Recycling Units 2 | . 2 . . Scanalyzers . | . . . . Garrison Access . | . . . . Total Hacks 10 | . 9 . 1 Successful 6 | . 5 . 1 Failed 4 | . 4 . . Catastrophic 1 | . 1 . . Database Lockouts . | . . . . Manual 10 | . 9 . 1 Terminals 6 | . 6 . . Fabricators . | . . . . Repair Stations 1 | . 1 . . Recycling Units 2 | . 2 . . Scanalyzers . | . . . . Garrison Access . | . . . . Terminal Hacks 1 | . . . 1 Proto ID Catalog 1 | . . . 1 Fabricator Hacks . | . . . . Repair Station Hacks . | . . . . Recycling Unit Hacks . | . . . . Scanalyzer . | . . . . Garrison Access Hacks . | . . . . Unauthorized Hacks 5 | . 5 . . Terminals 2 | . 2 . . Sabotage 2 | . 2 . . Fabricators . | . . . . Repair Stations 1 | . 1 . . Patch 1 | . 1 . . Recycling Units 2 | . 2 . . Tunnel 2 | . 2 . . Scanalyzers . | . . . . Garrison Access . | . . . . Data Cores Recovered . | . . . . Used . | . . . . Hacking Detections 1 | . 1 . . Full Trace Events 1 | . 1 . . Feedback Events . | . . . . Feedback Blocked . | . . . . Robot Schematics Acquired . | . . . . Robots Built . | . . . . Authchips . | . . . . Time . | . . . . Total Robot Build Rating . | . . . . Part Schematics Acquired . | . . . . Parts Built . | . . . . Authchips . | . . . . Time . | . . . . Total Part Build Rating . | . . . . Part Studies Acquired . | . . . . Parts Repaired . | . . . . Time . | . . . . Parts Recycled . | . . . . Recycled Matter . | . . . . Retrieved Matter . | . . . . Retrieved Components . | . . . . Parts Scanalyzed . | . . . . Part Schematics Acquired . | . . . . Parts Damaged . | . . . . Bothacking | -11 -10 -10 -10 ------------ Run | Yrd Mat Min Exi Used RIF Installer . | . . . . Robots Hacked . | . . . . Non-combat . | . . . . Combat . | . . . . Robot Hacks Applied . | . . . . Relay Couplers Released . | . . . . Fabnet Peak Effective % . | . . . . Robots Rewired . | . . . . Allies Hacked . | . . . . Hacks Repelled . | . . . . Allies | -11 -10 -10 -10 -------- Run | Yrd Mat Min Exi Total Allies 3 | . . 3 . Largest Group 3 | . . 3 3 Highest-Rated Group 40 | . . 40 40 Highest-Rated Ally 16 | . . 16 16 Total Orders 2 | . . . 2 STAY 2 | . . . 2 Ally Attacks 23 | . . . 23 Total Damage 209 | . . . 209 Kills 4 | . . . 4 Allies Corrupted . | . . . . Allies Melted . | . . . . Intel | -11 -10 -10 -10 ------- Run | Yrd Mat Min Exi Active Infowar (turns) 1122 | . . 628 494 Structural 1122 | . . 628 494 Robot Analysis Total . | . . . . Derelict Logs Recovered 1 | . . 1 . Drone Launches . | . . . . Drone Recoveries . | . . . . Exploration | -11 -10 -10 -10 ------------- Run | Yrd Mat Min Exi Turns Passed 2598 | 39 1330 735 494 Spaces Moved 2160 | 40 955 683 482 Core 16 | 16 . . . Treads . | . . . . Legs . | . . . . Wheels 1776 | 24 955 683 114 Hover . | . . . . Flight 368 | . . . 368 Fastest Speed 50 | 50 80 90 50 Average Speed 82 | 75 88 90 59 Slowest Speed 100 | 100 90 90 90 Overloaded Moves . | . . . . Propulsion Burnouts . | . . . . Robots Hopped . | . . . . Potential Cave-ins . | . . . . Cave-ins Triggered . | . . . . Exploration Rate (%) 64 | 4 96 95 61 Regions Visited 3 Branch Regions 2 Pre-discovered Areas 3 | . 2 1 . Known Exits Taken . | . . . . Unknown Exits Taken 3 | 1 1 1 . Scrap Searched 2 | . . 2 . Spaces Dug . | . . . . Terrain Destroyed 1 | . . . 1 Melee . | . . . . Projectile 1 | . . . 1 AOE . | . . . . Terrain Rammed . | . . . . Walls Destroyed . | . . . . Machines Disabled . | . . . . Actions | -11 -10 -10 -10 --------- Run | Yrd Mat Min Exi Total 2654 | 45 1218 774 617 Wait 255 | . 111 70 74 Move 2157 | 39 954 682 482 Hop . | . . . . Pick Up 9 | . 3 . 6 Fast Attach 11 | 6 2 2 1 Attach . | . . . . Detach . | . . . . Swap 9 | . 5 4 . Drop 16 | . 5 1 10 Fire 160 | . 112 13 35 Melee . | . . . . Ram . | . . . . Kick . | . . . . Crush . | . . . . Escape Stasis . | . . . . Rewire . | . . . . Trap . | . . . . Miscellaneous 37 | . 26 2 9 Route ------- -11/Scrapyard -10/Materials (discovered 5 exits: [*Mat x3] / [*Min x2]) -10/Mines (discovered 2 exits: [*Mat] / *Exi) -10/Exiles History --------- Turn | Location | Event 1 | -11/Scrapyard | Upgraded with Power slot (x1) 1 | -11/Scrapyard | Upgraded with Propulsion slot (x1) 1 | -11/Scrapyard | Upgraded with Utility slot (x1) 1 | -11/Scrapyard | Upgraded with Weapon slot (x1) 6 | -11/Scrapyard | Discovered new exit (range 15) 40 | -11/Scrapyard | Entered Materials 277 | -10/Materials | Discovered new exit (range 10) 326 | -10/Materials | Build established: Mutant 439 | -10/Materials | Discovered new exit (range 16) 538 | -10/Materials | Discovered new exit (range 10) 555 | -10/Materials | Reached level 2 796 | -10/Materials | Destroyed 9 combat bots 798 | -10/Materials | Discovered new exit (range 6) 853 | -10/Materials | Reached level 3 924 | -10/Materials | Upgraded with Propulsion slot (x1) 924 | -10/Materials | Upgraded with Weapon slot (x1) 1048 | -10/Materials | Core integrity fell below 50% 1282 | -10/Materials | Discovered new exit (range 10) 1370 | -10/Materials | Entered Mines 1382 | -10/Mines | Learned location of Storage (-8) 1403 | -10/Mines | Reached level 4 1421 | -10/Mines | Met a Derelict bent on vengeance 1436 | -10/Mines | Build established: Gunner 1488 | -10/Mines | A weapon hastily lodged in a ceiling crevice suddenly fell to the ground 1607 | -10/Mines | Discovered new exit (range 7) 1632 | -10/Mines | Deemed a non-threat by the Exiles lab entrance 1632 | -10/Mines | Discovered new exit (range 5) 1911 | -10/Mines | Assisted by bots powering up and referring to "LRC-V3" 2105 | -10/Mines | Entered Exiles 2105 | -10/Exiles | Accompanied by 3 allies 2128 | -10/Exiles | Met 8R-AWN 2143 | -10/Exiles | Met EX-HEX 2168 | -10/Exiles | Met EX-BIN 2180 | -10/Exiles | Aligned with FarCom system 2181 | -10/Exiles | Given EX-Vault access code 2202 | -10/Exiles | Opened EX-Vault 2208 | -10/Exiles | Upgraded with Propulsion slot (x1) 2210 | -10/Exiles | Found Flying Fortress v7 2222 | -10/Exiles | Warned to stay clear of 0b10 Research branches 2236 | -10/Exiles | Met EX-DEC 2419 | -10/Exiles | Attacked by the Exiles 2561 | -10/Exiles | Core integrity fell below 20% 2599 | -10/Exiles | Destroyed by 8R-AWN with 8R-AWN's Boregun Last Messages --------------- 02555_ Penetrated by HV Slug. 02555_ HV Slug penetrates Earth. 02557_ Penetrated by HV Slug. 02557_ HV Slug penetrates Earth. 02557_ Penetrated by HV Slug. 02557_ HV Slug penetrates Earth. 02560_ Penetrated by HV Slug. 02560_ HV Slug penetrates Earth. 02560_ Penetrated by HV Slug. 02560_ HV Slug penetrates Earth. 02562_ Penetrated by HV Slug. 02562_ HV Slug penetrates Earth. 02562_ Penetrated by HV Slug. 02562_ HV Slug penetrates Earth. 02565_ Penetrated by HV Slug. 02566_ Upgraded: Core Integrity (+100) 02569_ HV Slug penetrates Wall. 02569_ Penetrated by HV Slug. 02595_ Critical hit (Destroy). 02595_ Penetrated by HV Slug. Map ----- +----------------------------------------------------+ | ?????????????????????????????????????????????????? | | ?????????????????????????????????????????????????? | | ?????????????????????????????????????????????????? | | ?????????????????????????????????????????????????? | | ?????????????????????????????????????????????????? | | ?????????????????????????????????????????????????? | | ?????????????????????????????????????????????????? | | ?????????????????????????????????????????????????? | | ?????????????????????????????????????????????????? | | ????????????????????????????########?????????????? | | ??????????????? #######?????#########????????????? | | ??????????????? ########????##!!! "##????????????? | | ??????????????? #""##????## "##????????????? | | ??????????????? ####### "##??????????### | | ??????????????? ####### ""##??????????### | | ??????????????? #;###" ""##?????????? | | ???????????????? ##" ""##???????????" | | ????????????????? # " ##?????????????" | | ??????????????????? ###???????????"" | | ????????????????????## #####?????????"" | | ??????????????########## "####????????? | | ??????????????######### % % ""###????????"" | | ??????????????## !!"" % ########?#### | | ??????????????## ==%%% g###"" * ############ | | ?????????????### *%%= %!%####" """#####X# | | ?????????????##;! =!![ !@;####" | | ?????????????### """ " ;;;####"# * | | ??????????????##########;# ####### | | ??????????????####### # # ######### | | ?????????????????????## ## ##???###### | | ????????????????????## ## ##?????##### | | ????????????????????## ##? ##???????#### | | ???????????????????## ##?###????????####" | | ???????????????????## ##??????????????###""" | | ???????????????????# ##??????????????###" | | ??????????????????## ##???????????????##"" | | ??????????????????# ##??????????????###""" | | ?????????????????## ##???????????????##""" | | ?????????????????# #????????????????##""" | | ?????????????????####????????????????##"" | | ?????????????????????????????????????##""" | | ?????????????????????????????????????##"" | | ?????????????????????????????????????###"" | | ??????????????????????????????????????##"""" | | ??????????????????????????????????????### | | ???????????????????????????????????????##" | | ?????????????????????????????????????????"""" | | ??????????????????????????????????????????? | | ???????????????????????????????????????????? | | ????????????????????????????????????????????? | +----------------------------------------------------+ Best States ------------- Heat Dissipation 61 Energy Generation 15 Energy Capacity 400 Matter Stores 300 Matter Capacity 300 Sight Range 16 Terrain Scan Density 10 Armor Coverage 150 Utility Shielding 33 Evasion (%) 60 Item Schematics ----------------- None Robot Schematics ------------------ None Fabricated ------------ Nothing Repaired ---------- Nothing Studied --------- None Alien Tech Used ----------------- None Achievements -------------- None Challenges ------------ None RPGLIKE | -11 -10 -10 -10 --------- Run | Yrd Mat Min Exi Levels Raised 3 | . 2 1 . XP Earned 8300 | 3000 3750 1200 350 XP Spent 7430 | 2850 2500 . 2080 Upgrades 25 | 11 4 . 10 Power Slot 1 | 1 . . . Propulsion Slot 3 | 1 1 . 1 Utility Slot 1 | 1 . . . Weapon Slot 2 | 1 1 . . Core Integrity 8 | . . . 8 Heat Dissipation 6 | 6 . . . Inventory Capacity 2 | 1 . . 1 Ranged Accuracy 2 | . 2 . . Protomatter Created 328 | . 307 21 . Integrity Restored 733 | . 508 27 198 Core 670 | . 445 27 198 Parts 63 | . 63 . . Protomatter Decayed 51 | . 24 27 . Game ------ Seed SixPointDriveblaster Manual? 0 Play Time 00:16:43 Cumulative 423.7 hours Start 2025.10.22 @ 19:03:22 End 2025.10.22 @ 19:17:00 Sessions 1 Manual Loads 0 Difficulty Rogue Special Mode Winter2019/RPGLIKE Game No. 157 Rogue 3 Adventurer 154 Explorer 0 Win Type - Total 17 Types 3/3/3/3/1/1/0/1/1/1 Lore% 92 Gallery% 82 Achievement% 50 Wizard Run 0 Options --------- Layout 2 ASCII 0 Keyboard 0 Movement Numpad Keybinds 0 Fullscreen 2 Font 24/Smallcaps Map View 50x44 Zoom Use 0% Tactical HUD 1 Map Filters NONE Filters NONE Steam 1 RUN: ef9432c6-0fff-472d-8f70-dc718a3ccf27